bitfinex-derivatives/quotes_BTCF0:USTF0_20241203
["timestamp","ask_amount","ask_price","bid_price","bid_amount"]
[1733263495978,0.0001052,95832.0,95831.0,0.052133]
[1733263496174,0.0522372,95832.0,95831.0,4e-05]
[1733263497178,0.0001052,95832.0,95831.0,0.052173]
[1733263497383,0.0001052,95832.0,95831.0,0.054173]
[1733263498477,0.0104,95836.0,95831.0,0.00204]
[1733263498770,0.0104,95836.0,95835.0,0.05217]
[1733263499079,0.052127,95841.0,95840.0,0.052128]
[1733263499474,0.052127,95841.0,95840.0,0.052168]
[1733263499475,0.05224904,95841.0,95840.0,0.052168]
[1733263500089,0.05224904,95841.0,95840.0,4e-05]
[1733263500886,0.052132,95832.0,95831.0,0.002]
[1733263501070,0.554692,95832.0,95831.0,0.002]
[1733263501272,0.052134,95828.0,95820.0,0.00156542]
[1733263501872,0.00056001,95832.0,95831.0,0.052133]
[1733263502072,0.00056001,95832.0,95820.0,0.00156542]
[1733263502073,0.0104,95838.0,95829.0,0.3608]
[1733263502276,0.0104,95838.0,95837.0,0.052129]
[1733263502471,0.0104,95838.0,95831.0,0.00404]
[1733263502472,0.38822204,95841.0,95840.0,0.052128]
[1733263502677,0.44034904,95841.0,95840.0,0.052128]
[1733263502877,0.44034904,95841.0,95840.0,0.052168]
[1733263503885,0.00012204,95841.0,95840.0,0.052168]
[1733263504274,0.00212204,95841.0,95840.0,0.052168]
[1733263504478,0.052122,95850.0,95849.0,0.052123]
[1733263504674,0.17647891,95850.0,95849.0,0.052123]
[1733263504883,0.17647891,95850.0,95849.0,0.052163]
[1733263505087,0.00056001,95851.0,95850.0,0.052122]
[1733263505279,0.05368589,95856.0,95850.0,0.052122]
[1733263505280,0.00156589,95856.0,95855.0,0.05212]
[1733263505475,0.00163948,95856.0,95855.0,0.05212]
[1733263505674,0.14176,95866.0,95855.0,4e-05]
[1733263505675,0.0715694,95860.0,95855.0,4e-05]
[1733263505878,0.17664607,95865.0,95864.0,0.052115]
[1733263506082,0.12453207,95869.0,95860.0,0.052117]
[1733263506287,0.12453207,95869.0,95859.0,0.3608]
[1733263506288,0.052112,95871.0,95868.0,0.3608]
[1733263506484,0.1246944,95869.0,95868.0,0.412953]
[1733263506691,0.052112,95871.0,95870.0,4e-05]
[1733263506892,0.052112,95871.0,95870.0,0.052152]
[1733263506893,0.05223719,95871.0,95870.0,0.052152]
[1733263507692,0.00012519,95871.0,95870.0,0.052152]
[1733263508881,0.05223719,95871.0,95870.0,4e-05]
[1733263509287,0.14172,95877.0,95870.0,4e-05]
[1733263509488,0.056112,95871.0,95870.0,4e-05]
[1733263509684,0.05212,95855.0,95854.0,0.0026]
[1733263509885,0.052111,95870.0,95851.0,0.0315]
[1733263509886,0.052121,95852.0,95851.0,0.0315]
[1733263510076,0.052121,95852.0,95851.0,0.083622]
[1733263510282,0.052121,95852.0,95848.0,0.3608]
[1733263510283,0.00012288,95858.0,95848.0,0.3608]
[1733263510485,0.052127,95842.0,95840.0,0.052128]
[1733263510784,0.052128,95841.0,95840.0,0.052127]
[1733263511185,0.22909009,95850.0,95831.0,4e-05]
[1733263511385,0.22909009,95850.0,95836.0,0.05213]
[1733263511386,0.05213,95837.0,95836.0,0.05213]
[1733263511580,0.0332,95849.0,95832.0,0.052132]
[1733263511581,0.052129,95839.0,95832.0,0.052132]
[1733263511783,0.14172,95847.0,95837.0,0.052129]
[1733263511784,0.05213,95838.0,95837.0,0.052129]
[1733263513387,0.1246944,95838.0,95837.0,0.006]
[1733263513590,0.053129,95838.0,95837.0,0.006]
[1733263513887,0.054129,95838.0,95837.0,0.015]
[1733263514291,0.053129,95838.0,95837.0,0.006]
[1733263515893,0.05213,95836.0,95835.0,0.05213]
[1733263516386,0.05213,95836.0,95831.0,4e-05]
[1733263516387,0.052132,95832.0,95831.0,4e-05]
[1733263517987,0.052132,95832.0,95831.0,0.00304]
[1733263517988,0.028692,95832.0,95831.0,0.00304]
[1733263518487,0.18429625,95832.0,95831.0,0.00504]
[1733263518791,0.15579524,95832.0,95831.0,0.00504]
[1733263519090,0.41349101,95836.0,95831.0,0.00504]
[1733263519091,0.15579524,95834.0,95831.0,0.00504]
[1733263519292,0.15579524,95834.0,95833.0,0.052132]
[1733263519483,0.052131,95835.0,95834.0,0.052131]
[1733263519687,0.052131,95835.0,95834.0,0.07005136]
[1733263519885,0.052131,95835.0,95834.0,0.052131]
[1733263519886,0.17675419,95835.0,95834.0,0.052131]
[1733263520081,0.052131,95835.0,95834.0,0.052131]
[1733263520281,0.052131,95834.0,95833.0,4e-05]
[1733263520489,0.15579524,95839.0,95831.0,0.00504]
[1733263520490,0.052132,95832.0,95831.0,0.00504]
[1733263520786,0.0286573,95832.0,95831.0,0.00504]
[1733263520988,0.1704173,95832.0,95831.0,0.00204]
[1733263521898,0.1704173,95832.0,95831.0,4e-05]
[1733263521899,0.29505377,95832.0,95831.0,4e-05]
[1733263522291,0.1704173,95832.0,95831.0,4e-05]
[1733263522596,0.1704173,95832.0,95831.0,0.00304]
[1733263522787,0.1704173,95832.0,95831.0,0.00504]
[1733263530395,0.32621254,95832.0,95831.0,0.00504]
[1733263530798,0.1704173,95832.0,95831.0,0.00504]
[1733263531402,0.32621254,95832.0,95831.0,0.00504]
[1733263532201,0.32615149,95832.0,95831.0,0.00504]
[1733263532401,0.22113335,95832.0,95831.0,0.00504]
[1733263532698,0.1704173,95832.0,95831.0,0.00504]
[1733263532903,0.32615194,95832.0,95831.0,0.00504]
[1733263533201,0.0286573,95832.0,95831.0,0.057173]
[1733263533390,0.0286573,95832.0,95831.0,0.00504]
[1733263534603,0.0286573,95832.0,95821.0,0.00011122]
[1733263534604,0.052135,95828.0,95821.0,0.00011122]
[1733263534908,0.412939,95822.0,95821.0,0.00011122]
[1733263535703,0.46366021,95822.0,95821.0,0.00811122]
[1733263535890,0.46366021,95822.0,95821.0,0.01211122]
[1733263536195,0.46366021,95822.0,95821.0,0.00411122]
[1733263536503,0.60626021,95822.0,95821.0,0.01211122]
[1733263537207,0.41252121,95822.0,95821.0,0.06424922]
[1733263537504,0.10385921,95822.0,95821.0,0.12764922]
[1733263537706,0.20895738,95822.0,95821.0,0.12764922]
[1733263537895,0.053138,95822.0,95821.0,0.12764922]
[1733263538200,0.20906337,95822.0,95821.0,0.12764922]
[1733263538397,0.053138,95822.0,95821.0,0.12764922]
[1733263538597,0.053138,95822.0,95821.0,0.14638002]
[1733263538598,0.10385383,95822.0,95821.0,0.14638002]
[1733263538808,0.20906407,95822.0,95821.0,0.14638002]
[1733263539100,0.10385251,95822.0,95821.0,0.14638002]
[1733263539495,0.05171451,95822.0,95821.0,0.14638002]
[1733263539902,0.15609907,95822.0,95821.0,0.23200993]
[1733263540106,0.1416,95845.0,95823.0,0.052137]
[1733263540107,0.18587574,95833.0,95823.0,0.052137]
[1733263540401,0.052129,95837.0,95836.0,0.052129]
[1733263540592,0.18587574,95839.0,95832.0,0.36084]
[1733263540792,0.052129,95839.0,95838.0,0.052128]
[1733263541003,0.052129,95839.0,95838.0,0.052168]
[1733263541696,0.052129,95839.0,95838.0,4e-05]
[1733263542091,0.053129,95839.0,95838.0,4e-05]
[1733263542393,0.16193987,95839.0,95838.0,4e-05]
[1733263542599,0.03065545,95839.0,95838.0,4e-05]
[1733263543700,0.21811526,95839.0,95838.0,4e-05]
[1733263544291,0.03065545,95839.0,95838.0,4e-05]
[1733263546207,0.21809197,95839.0,95838.0,4e-05]
[1733263546510,0.03065545,95839.0,95838.0,4e-05]
[1733263546694,0.21809199,95839.0,95838.0,4e-05]
[1733263547201,0.03065545,95839.0,95838.0,4e-05]
[1733263547995,0.21809199,95839.0,95838.0,4e-05]
[1733263548200,0.03065545,95839.0,95838.0,4e-05]
[1733263548398,0.21807729,95839.0,95838.0,4e-05]
[1733263548902,0.03065545,95839.0,95838.0,0.052168]
[1733263549998,0.002,95839.0,95838.0,0.07768048]
[1733263550216,0.3608,95846.0,95838.0,0.07768048]
[1733263550217,0.18742184,95844.0,95838.0,0.07768048]
[1733263550402,0.15613557,95839.0,95838.0,0.052168]
[1733263550606,0.18742184,95839.0,95838.0,0.07759736]
[1733263550809,0.052125,95844.0,95843.0,0.052126]
[1733263551013,0.16047377,95844.0,95843.0,0.052126]
[1733263551405,0.16145489,95844.0,95843.0,0.052126]
[1733263551807,0.053125,95844.0,95843.0,0.052126]
[1733263552310,0.053125,95844.0,95843.0,0.07121836]
[1733263552503,0.052125,95844.0,95843.0,0.0775733]
[1733263552805,0.053125,95844.0,95843.0,0.0775733]
[1733263554208,0.053125,95844.0,95843.0,0.0785733]
[1733263554419,0.053125,95844.0,95843.0,0.07857115]
[1733263554906,0.24437879,95844.0,95843.0,0.07857115]
[1733263555102,0.29508211,95844.0,95843.0,0.07857115]
[1733263555304,0.10782832,95844.0,95843.0,0.07757115]
[1733263555501,0.2463618,95844.0,95843.0,0.07757115]
[1733263555707,0.10982832,95844.0,95843.0,0.07757115]
[1733263556009,0.29706512,95844.0,95843.0,0.07757115]
[1733263556406,0.10982832,95844.0,95843.0,0.07757115]
[1733263556711,0.10982832,95844.0,95843.0,0.052126]
[1733263557007,0.05770332,95844.0,95843.0,0.07738419]
[1733263557606,0.00012288,95858.0,95843.0,0.07738419]
[1733263557607,0.15600388,95848.0,95843.0,0.21252094]
[1733263557804,0.00012288,95858.0,95850.0,0.052122]
[1733263558008,0.18722425,95872.0,95857.0,0.7216]
[1733263558304,0.05211,95873.0,95871.0,0.36084]
[1733263558614,0.00056001,95878.0,95877.0,0.052106]
[1733263558615,0.052107,95878.0,95877.0,0.052106]
[1733263559108,0.052107,95878.0,95877.0,0.052146]
[1733263560504,0.054107,95878.0,95877.0,0.052146]
[1733263561201,0.058107,95878.0,95877.0,0.052146]
[1733263561599,0.054107,95878.0,95877.0,0.052146]
[1733263561802,0.055107,95878.0,95877.0,0.052146]
[1733263562012,0.053107,95878.0,95877.0,0.052146]
[1733263562808,0.053107,95878.0,95877.0,0.05841187]
[1733263563521,0.053107,95878.0,95877.0,0.05840827]
[1733263563908,0.053107,95878.0,95877.0,0.05940827]
[1733263564103,0.053107,95878.0,95877.0,0.053146]
[1733263564411,0.052107,95878.0,95877.0,0.054146]
[1733263564609,0.052107,95878.0,95877.0,0.053146]
[1733263565003,0.00010066,95885.0,95883.0,0.052104]
[1733263565917,0.00010066,95885.0,95883.0,0.052144]
[1733263565918,0.05220366,95885.0,95883.0,0.052144]
[1733263566817,0.05220366,95885.0,95883.0,0.05840802]
[1733263567006,0.084404,95884.0,95883.0,0.05840802]
[1733263567206,0.084404,95884.0,95883.0,0.052144]
[1733263567408,0.0323,95884.0,95883.0,0.06040623]
[1733263567607,0.00010066,95885.0,95883.0,0.06040623]
[1733263567608,0.00010066,95885.0,95884.0,0.052104]
[1733263567807,0.00010066,95885.0,95884.0,0.05836623]
[1733263568113,0.00010066,95885.0,95884.0,0.052144]
[1733263568616,0.00010066,95885.0,95884.0,0.412944]
[1733263569517,0.07654194,95900.0,95899.0,0.052096]
[1733263569830,0.07654194,95900.0,95899.0,0.052136]
[1733263570117,0.07654194,95900.0,95899.0,0.07080824]
[1733263570814,0.07654194,95900.0,95899.0,0.10072103]
[1733263571018,0.08454194,95900.0,95899.0,0.10172103]
[1733263571723,0.07754194,95900.0,95899.0,0.10072103]
[1733263571915,0.08054194,95900.0,95899.0,0.10072103]
[1733263572920,0.05708574,95900.0,95899.0,0.18668103]
[1733263573515,0.05308574,95900.0,95899.0,0.17000879]
[1733263573720,0.05308574,95900.0,95899.0,0.19060912]
[1733263573910,0.05308574,95900.0,95899.0,0.17200879]
[1733263574219,0.00011016,95910.0,95899.0,0.22518862]
[1733263574416,0.00011016,95910.0,95909.0,0.41289]
[1733263574615,0.00011016,95910.0,95909.0,0.43152686]
[1733263576220,0.0329,95917.0,95914.0,0.052089]
[1733263577216,0.0329,95917.0,95914.0,0.052129]
[1733263577621,0.00756447,95915.0,95914.0,0.052129]
[1733263578619,0.00156447,95915.0,95914.0,0.052129]
[1733263578923,0.00556447,95915.0,95914.0,0.052129]
[1733263579921,0.00556447,95915.0,95914.0,4e-05]
[1733263579922,0.05965247,95915.0,95914.0,4e-05]
[1733263580119,0.052096,95901.0,95900.0,0.0104]
[1733263580420,0.052097,95899.0,95898.0,0.00056]
[1733263580609,0.3608,95903.0,95890.0,0.052102]
[1733263580610,0.052102,95891.0,95890.0,0.052102]
[1733263580917,0.412902,95891.0,95890.0,0.052102]
[1733263582520,0.412902,95891.0,95889.0,0.00634417]
[1733263582521,0.14136,95898.0,95889.0,0.00634417]
[1733263582724,0.14136,95898.0,95894.0,0.052098]
[1733263582725,0.052099,95895.0,95894.0,0.052098]
[1733263584225,0.083798,95897.0,95896.0,0.052098]
[1733263585318,0.0317,95897.0,95896.0,0.052098]
[1733263585620,0.052095,95903.0,95902.0,0.052095]
[1733263585822,0.3608,95913.0,95907.0,0.052091]
[1733263586020,0.3608,95913.0,95899.0,0.3608]
[1733263586021,0.412889,95913.0,95912.0,0.05209]
[1733263586624,0.412889,95913.0,95912.0,0.05213]
[1733263587334,0.417889,95913.0,95912.0,4e-05]
[1733263587829,0.39643103,95913.0,95912.0,0.00104]
[1733263588022,0.55409283,95913.0,95912.0,0.00104]
[1733263589530,0.55409283,95913.0,95912.0,0.053129]
[1733263589729,0.55409283,95913.0,95912.0,0.00104]
[1733263590023,0.54909283,95913.0,95912.0,4e-05]
[1733263590330,0.55709283,95913.0,95912.0,0.00104]
[1733263590531,0.55709283,95913.0,95912.0,4e-05]
[1733263590832,0.55409283,95913.0,95912.0,0.00104]
[1733263591021,0.39843103,95913.0,95912.0,0.00104]
[1733263591221,0.39943103,95913.0,95912.0,0.00104]
[1733263591416,0.55509283,95913.0,95912.0,0.00104]
[1733263591725,0.39943103,95913.0,95912.0,0.00104]
[1733263592227,0.39943103,95913.0,95894.0,0.02345068]
[1733263592228,0.052098,95895.0,95894.0,0.02345068]
[1733263592422,0.052098,95895.0,95892.0,0.05366328]
[1733263592423,0.3608,95898.0,95892.0,0.00156428]
[1733263592626,0.3608,95898.0,95894.0,0.01867033]
[1733263592627,0.10359677,95895.0,95894.0,0.01867033]
[1733263592931,0.0326,95897.0,95892.0,0.00156428]
[1733263592932,0.052099,95893.0,95892.0,0.00156428]
[1733263593325,0.052099,95893.0,95892.0,0.07455428]
[1733263594120,0.052099,95893.0,95892.0,0.0954097]
[1733263594638,0.053099,95893.0,95892.0,0.0954097]
[1733263595325,0.053099,95893.0,95892.0,0.07455428]
[1733263595529,0.053099,95893.0,95892.0,0.07921428]
[1733263597322,0.194299,95893.0,95892.0,0.02931428]
[1733263597529,0.194299,95893.0,95878.0,0.0026]
[1733263597530,0.052107,95879.0,95878.0,0.0026]
[1733263597728,0.052107,95879.0,95877.0,0.0001288]
[1733263597729,0.052108,95878.0,95877.0,0.0001288]
[1733263597917,0.052108,95878.0,95877.0,0.0522368]
[1733263598621,0.412906,95882.0,95881.0,0.052106]
[1733263599021,0.3608,95882.0,95881.0,0.052106]
[1733263599222,0.3608,95882.0,95881.0,0.0704662]
[1733263599223,0.412905,95882.0,95881.0,0.0704662]
[1733263599929,0.3608,95882.0,95881.0,0.0734662]
[1733263601029,0.412905,95882.0,95881.0,0.0263602]
[1733263601224,0.412905,95882.0,95881.0,0.008]
[1733263601731,0.0104,95885.0,95884.0,0.052104]
[1733263601930,0.0104,95891.0,95890.0,0.052101]
[1733263602125,0.052099,95894.0,95893.0,0.052099]
[1733263602631,0.052099,95894.0,95893.0,0.052139]
[1733263602935,0.02863922,95894.0,95893.0,0.052139]
[1733263604032,0.02963922,95894.0,95893.0,0.052139]
[1733263604233,0.001,95894.0,95893.0,0.052139]
[1733263604534,0.001,95894.0,95893.0,0.07720353]
[1733263605233,0.052098,95895.0,95894.0,0.052099]
[1733263605430,0.052098,95895.0,95894.0,0.05835835]
[1733263605628,0.052098,95895.0,95894.0,0.05839835]
[1733263606031,0.052098,95895.0,95894.0,0.052139]
[1733263607135,0.052098,95895.0,95894.0,0.05839879]
[1733263607434,0.052098,95895.0,95894.0,0.052139]
[1733263607639,0.054098,95895.0,95894.0,0.052139]
[1733263608327,0.052098,95895.0,95894.0,0.05840326]
[1733263608531,0.053098,95895.0,95894.0,0.05840326]
[1733263608731,0.053098,95895.0,95894.0,0.052139]
[1733263608932,0.001,95895.0,95894.0,0.052139]
[1733263609438,0.001,95895.0,95894.0,0.05840707]
[1733263609830,0.052096,95899.0,95894.0,0.05840707]
[1733263609831,0.052096,95899.0,95894.0,0.07723323]
[1733263610039,0.052096,95899.0,95898.0,0.052096]
[1733263610436,0.052096,95899.0,95898.0,0.052136]
[1733263611239,0.054096,95899.0,95898.0,0.052136]
[1733263612134,0.15637677,95899.0,95898.0,0.052136]
[1733263612328,0.054096,95899.0,95898.0,0.052136]
[1733263612735,0.052096,95899.0,95898.0,0.052136]
[1733263612940,0.055096,95899.0,95898.0,0.052136]
[1733263613139,0.056096,95899.0,95898.0,0.052136]
[1733263615035,0.15819696,95899.0,95898.0,0.052136]
[1733263615546,0.15819696,95899.0,95898.0,0.101656]
[1733263616143,0.056096,95899.0,95898.0,0.101656]
[1733263618249,0.24267968,95899.0,95898.0,0.101656]
[1733263619548,0.056096,95899.0,95898.0,0.101656]
[1733263619953,0.056096,95899.0,95898.0,0.04956]
[1733263620756,0.15665869,95899.0,95898.0,0.04956]
[1733263620942,0.18909422,95899.0,95898.0,0.04956]
[1733263621554,0.21857975,95899.0,95898.0,0.04956]
[1733263621848,0.21957975,95899.0,95898.0,0.04956]
[1733263622460,0.22057975,95899.0,95898.0,0.04956]
[1733263622665,0.15739422,95899.0,95898.0,0.04956]
[1733263623069,0.18789066,95899.0,95898.0,0.04956]
[1733263623676,0.18763568,95899.0,95898.0,0.04956]
[1733263623875,0.40537914,95899.0,95898.0,0.04956]
[1733263624869,0.18763568,95899.0,95898.0,0.04956]
[1733263625073,0.40536643,95899.0,95898.0,0.04956]
[1733263625871,0.40536643,95899.0,95893.0,4e-05]
[1733263625872,0.0521,95894.0,95893.0,4e-05]
[1733263626068,0.65398324,95894.0,95893.0,4e-05]
[1733263626267,0.76597761,95894.0,95893.0,4e-05]
[1733263627170,0.76697761,95894.0,95893.0,4e-05]
[1733263628773,0.052107,95881.0,95880.0,0.0026]
[1733263628963,0.052109,95878.0,95877.0,0.0001288]
[1733263630374,0.053109,95878.0,95877.0,0.0071288]
[1733263631180,0.23955896,95878.0,95877.0,0.0071288]
[1733263631379,0.14850888,95878.0,95877.0,8e-07]
[1733263632775,0.14850888,95878.0,95877.0,0.0040008]
[1733263632981,0.053109,95878.0,95877.0,0.0040008]
[1733263633178,0.194149,95878.0,95877.0,0.0040008]
[1733263634071,0.38048111,95878.0,95877.0,0.0040008]
[1733263634780,0.41058966,95878.0,95877.0,0.0040008]
[1733263635178,0.22425755,95878.0,95877.0,0.0040008]
[1733263636580,0.22425755,95878.0,95877.0,8e-07]
[1733263636888,0.41058966,95878.0,95877.0,8e-07]
[1733263637985,0.22425755,95878.0,95877.0,8e-07]
[1733263638688,0.41058966,95878.0,95877.0,8e-07]
[1733263638883,0.22425755,95878.0,95877.0,8e-07]
[1733263641282,0.08321755,95878.0,95877.0,8e-07]
[1733263641491,0.053109,95878.0,95877.0,8e-07]
[1733263642592,0.001,95878.0,95877.0,8e-07]
[1733263642889,0.053109,95878.0,95877.0,8e-07]
[1733263643601,0.32741211,95891.0,95877.0,8e-07]
[1733263643783,0.052107,95884.0,95883.0,0.052105]
[1733263645684,0.052107,95884.0,95883.0,0.054105]
[1733263645994,0.052107,95884.0,95883.0,0.056105]
[1733263646391,0.052107,95884.0,95883.0,0.004]
[1733263648783,0.052107,95884.0,95883.0,0.002]
[1733263648989,0.052107,95884.0,95883.0,0.004]
[1733263652496,0.412907,95884.0,95883.0,0.004]
[1733263653885,0.553787,95884.0,95883.0,0.004]
[1733263660699,0.74039442,95884.0,95883.0,0.004]
[1733263662296,0.553787,95884.0,95883.0,0.004]
[1733263662800,0.0104,95887.0,95886.0,0.052105]
[1733263663001,0.0104,95892.0,95891.0,0.052102]
[1733263663190,0.052097,95901.0,95900.0,0.052096]
[1733263663502,0.052097,95901.0,95900.0,4e-05]
[1733263663794,0.052097,95901.0,95900.0,0.052138]
[1733263664700,0.052097,95901.0,95900.0,0.053138]
[1733263665494,0.055097,95901.0,95900.0,0.053138]
[1733263665891,0.052095,95906.0,95900.0,0.02278795]
[1733263666096,0.052095,95906.0,95905.0,0.052095]
[1733263666291,0.052095,95906.0,95905.0,0.052135]
[1733263666488,0.052095,95906.0,95905.0,0.07387346]
[1733263666688,0.54740845,95911.0,95905.0,0.07387346]
[1733263666689,0.412893,95911.0,95910.0,0.052092]
[1733263667005,0.412893,95911.0,95910.0,0.052132]
[1733263668996,0.416893,95911.0,95910.0,0.052132]
[1733263669303,0.058093,95911.0,95910.0,0.052132]
[1733263671195,0.006,95911.0,95910.0,0.052132]
[1733263671597,0.006,95911.0,95910.0,0.07355046]
[1733263671798,0.058092,95911.0,95910.0,0.07355046]
[1733263672705,0.058092,95911.0,95910.0,0.1037411]
[1733263673809,0.058092,95911.0,95910.0,0.09839365]
[1733263674807,0.058092,95911.0,95910.0,0.08232264]
[1733263675604,0.058092,95911.0,95910.0,4e-05]
[1733263687317,0.24470045,95911.0,95910.0,4e-05]
[1733263688212,0.058092,95911.0,95910.0,4e-05]
[1733263691411,0.052097,95901.0,95900.0,0.00264]
[1733263691616,0.02863834,95901.0,95900.0,4e-05]
[1733263691820,0.11964773,95901.0,95900.0,4e-05]
[1733263692224,0.21073535,95901.0,95900.0,4e-05]
[1733263693916,0.11964773,95901.0,95900.0,4e-05]
[1733263694720,0.11964773,95901.0,95900.0,0.00104]
[1733263695123,0.21092077,95901.0,95900.0,0.00104]
[1733263695926,0.12191138,95901.0,95900.0,4e-05]
[1733263696526,0.12591138,95901.0,95900.0,4e-05]
[1733263700730,0.03463834,95901.0,95900.0,4e-05]
[1733263703921,0.17531834,95901.0,95900.0,4e-05]
[1733263704125,0.03463834,95901.0,95900.0,4e-05]
[1733263704333,0.006,95901.0,95900.0,0.052138]
[1733263705632,0.052097,95902.0,95901.0,0.052097]
[1733263706037,0.052097,95902.0,95901.0,0.052137]
[1733263706232,0.18678584,95903.0,95902.0,0.052097]
[1733263706538,0.22045992,95914.0,95903.0,0.052096]
[1733263706539,0.18678584,95904.0,95903.0,0.052096]
[1733263706830,0.16332819,95904.0,95903.0,0.052096]
[1733263707024,0.16332819,95904.0,95903.0,0.052136]
[1733263707227,0.21542419,95904.0,95903.0,0.052136]
[1733263708322,0.052096,95904.0,95903.0,0.052136]
[1733263708536,0.052096,95904.0,95903.0,0.06798403]
[1733263708733,0.052096,95904.0,95903.0,0.052136]
[1733263709627,0.052096,95904.0,95903.0,0.06785486]
[1733263711739,0.052096,95904.0,95903.0,0.052136]
[1733263712827,0.052096,95904.0,95903.0,4e-05]
[1733263713734,0.0026,95914.0,95903.0,4e-05]
[1733263713735,0.052093,95910.0,95903.0,4e-05]
[1733263713942,0.052093,95910.0,95909.0,0.052092]
[1733263714126,0.052093,95910.0,95909.0,0.052132]
[1733263716031,0.052093,95910.0,95909.0,4e-05]
[1733263716436,0.054093,95910.0,95909.0,4e-05]
[1733263716936,0.14459574,95910.0,95909.0,0.052133]
[1733263717332,0.054093,95910.0,95909.0,0.052133]
[1733263717938,0.002,95910.0,95909.0,0.052133]
[1733263718740,0.002,95910.0,95909.0,0.06785162]
[1733263719440,0.0026,95921.0,95909.0,0.17211657]
[1733263719741,0.00065434,95924.0,95923.0,0.052086]
[1733263719941,9.433e-05,95924.0,95923.0,0.052086]
[1733263720130,9.433e-05,95924.0,95923.0,0.052126]
[1733263720439,9.433e-05,95924.0,95923.0,0.06767997]
[1733263720936,0.052082,95930.0,95923.0,0.06767997]
[1733263721138,0.052082,95930.0,95929.0,0.41288]
[1733263721335,0.052082,95930.0,95929.0,0.42847397]
[1733263721528,0.05208,95935.0,95934.0,0.052079]
[1733263721933,0.05208,95935.0,95934.0,0.052119]
[1733263722840,0.05208,95935.0,95934.0,0.053119]
[1733263723631,0.05208,95935.0,95934.0,0.00104]
[1733263724840,0.05208,95935.0,95934.0,0.00204]
[1733263724841,0.06008,95935.0,95934.0,0.00204]
[1733263727541,0.06008,95935.0,95934.0,0.05412]
[1733263728644,0.06008,95935.0,95934.0,0.00204]
[1733263734050,0.42088,95935.0,95934.0,0.00204]
[1733263735452,0.42088,95935.0,95934.0,0.02288292]
[1733263741954,0.51228563,95935.0,95934.0,0.02288292]
[1733263742343,0.42088,95935.0,95934.0,0.02288292]
[1733263742746,0.51229795,95935.0,95934.0,0.02288292]
[1733263743146,0.42088,95935.0,95934.0,0.02288292]
[1733263746452,0.06008,95935.0,95934.0,0.02288292]
[1733263749354,0.06008,95935.0,95926.0,0.0026]
[1733263749355,0.052083,95927.0,95926.0,0.0026]
[1733263749545,0.052084,95925.0,95924.0,0.00056]
[1733263749859,0.052084,95925.0,95923.0,4e-05]
[1733263749860,0.052085,95924.0,95923.0,4e-05]
[1733263752458,0.057085,95924.0,95923.0,4e-05]
[1733263752652,0.059085,95924.0,95923.0,0.00104]
[1733263753252,0.15083956,95924.0,95923.0,0.00104]
[1733263754759,0.15083956,95924.0,95923.0,0.053126]
[1733263754760,0.007,95924.0,95923.0,0.053126]
[1733263754962,0.059085,95924.0,95923.0,0.193366]
[1733263755160,0.059085,95924.0,95923.0,0.20890638]
[1733263755662,0.24599243,95924.0,95923.0,0.20890638]
[1733263755849,0.007,95924.0,95923.0,0.20890638]
[1733263757669,0.19390743,95924.0,95923.0,0.20890638]
[1733263758954,0.007,95924.0,95923.0,0.20890638]
[1733263759257,0.19390743,95924.0,95923.0,0.20890638]
[1733263760167,0.007,95924.0,95923.0,0.20890638]
[1733263764273,0.007,95924.0,95923.0,0.38067666]
[1733263764667,0.007,95924.0,95923.0,0.29761574]
[1733263764868,0.23898643,95936.0,95923.0,0.31316853]
[1733263765170,0.23898643,95936.0,95935.0,0.052119]
[1733263765561,0.052079,95936.0,95935.0,0.052119]
[1733263766266,0.053079,95936.0,95935.0,0.052119]
[1733263766466,0.18792478,95936.0,95935.0,0.052119]
[1733263766662,0.001,95936.0,95935.0,0.052119]
[1733263766862,0.18692478,95937.0,95935.0,4e-05]
[1733263767066,0.18692478,95937.0,95935.0,0.052119]
[1733263767067,0.001,95936.0,95935.0,0.052119]
[1733263767262,0.18792478,95936.0,95935.0,0.052119]
[1733263767471,0.001,95936.0,95935.0,0.052119]
[1733263767879,0.001,95936.0,95935.0,0.052079]
[1733263768175,0.09279353,95936.0,95935.0,0.052079]
[1733263768367,0.09379353,95936.0,95935.0,0.052079]
[1733263768962,0.09279353,95936.0,95935.0,0.052079]
[1733263770071,0.09179353,95936.0,95935.0,0.052079]
[1733263770580,0.09179353,95936.0,95935.0,0.08146373]
[1733263771780,9.389e-05,95939.0,95938.0,0.052077]
[1733263772080,0.05217089,95939.0,95938.0,0.052077]
[1733263772272,0.14400327,95939.0,95938.0,0.052077]
[1733263772579,0.05217089,95939.0,95938.0,0.052077]
[1733263773180,0.05317089,95939.0,95938.0,0.052077]
[1733263774881,0.05217089,95939.0,95938.0,0.052077]
[1733263775076,0.05317089,95939.0,95938.0,0.052077]
[1733263776382,0.23998932,95939.0,95938.0,0.052077]
[1733263776786,0.05217089,95939.0,95938.0,0.052077]
[1733263776982,0.05317089,95939.0,95938.0,0.052077]
[1733263778588,0.05217089,95939.0,95938.0,0.052077]
[1733263778772,0.00109389,95939.0,95938.0,0.052077]
[1733263780191,0.0327,95942.0,95941.0,0.052076]
[1733263780991,0.12472949,95942.0,95941.0,0.052076]
[1733263781191,0.12472949,95942.0,95941.0,0.052116]
[1733263781684,0.00011606,95948.0,95941.0,0.052116]
[1733263781888,0.00011606,95948.0,95941.0,0.15634618]
[1733263781889,0.002,95942.0,95941.0,0.15634618]
[1733263782190,0.002,95942.0,95941.0,0.17169802]
[1733263782584,0.00011606,95948.0,95947.0,0.052073]
[1733263784283,0.00011606,95948.0,95947.0,0.06745465]
[1733263784998,0.00411606,95948.0,95947.0,0.06845465]
[1733263785391,0.00411606,95948.0,95947.0,0.053073]
[1733263785885,0.00411606,95948.0,95947.0,0.06845285]
[1733263786289,0.05618806,95948.0,95947.0,0.06845285]
[1733263786496,0.05618806,95948.0,95947.0,0.053073]
[1733263787399,0.05618806,95948.0,95947.0,0.0829897]
[1733263792003,0.05618806,95948.0,95947.0,0.0819897]
[1733263792300,0.05518806,95948.0,95947.0,0.0829897]